bitfinex-derivatives/quotes_BTCF0:USTF0_20251111
["timestamp","ask_amount","ask_price","bid_price","bid_amount"]
[1762824147606,1.02355361,107480.0,107470.0,0.00010013]
[1762824147807,0.9069331,107480.0,107470.0,0.00010013]
[1762824148015,1.02355361,107480.0,107470.0,0.00010013]
[1762824148706,1.02355361,107480.0,107470.0,1.3e-07]
[1762824148906,0.1476317,107470.0,107460.0,0.00013977]
[1762824149116,0.62505221,107470.0,107460.0,0.00013977]
[1762824149617,0.147649,107450.0,107440.0,0.41406]
[1762824149813,0.5306178,107450.0,107440.0,0.36299803]
[1762824150019,0.64723831,107450.0,107440.0,0.36299803]
[1762824150709,0.3828888,107450.0,107440.0,0.43217803]
[1762824150911,0.4759878,107450.0,107440.0,0.43217803]
[1762824151110,0.4100288,107450.0,107440.0,0.43217803]
[1762824151415,0.4098288,107450.0,107440.0,0.43217803]
[1762824152010,0.64695831,107450.0,107440.0,0.00219803]
[1762824152211,1.00775831,107450.0,107440.0,0.00219803]
[1762824152409,0.8911378,107450.0,107440.0,0.00219803]
[1762824152719,8.88e-05,107450.0,107440.0,0.07137803]
[1762824152927,8.88e-05,107450.0,107440.0,0.54879854]
[1762824153118,8.88e-05,107450.0,107440.0,0.64190624]
[1762824153319,8.88e-05,107450.0,107440.0,0.54879854]
[1762824153718,8.88e-05,107450.0,107440.0,0.43217803]
[1762824153910,0.0931878,107450.0,107440.0,0.43217803]
[1762824154110,0.1203278,107450.0,107440.0,0.43217803]
[1762824154411,8.88e-05,107450.0,107440.0,0.43217803]
[1762824154613,0.46572307,107460.0,107440.0,0.43217803]
[1762824154817,0.52027307,107460.0,107450.0,0.3608]
[1762824155014,0.52027307,107460.0,107450.0,0.36299803]
[1762824155411,0.52027307,107460.0,107450.0,0.38764803]
[1762824155818,0.52027307,107460.0,107450.0,0.05545803]
[1762824156207,0.147649,107450.0,107440.0,0.3608]
[1762824156407,0.26426951,107450.0,107440.0,0.36299803]
[1762824156607,0.02714,107460.0,107450.0,0.05326]
[1762824156813,0.02714,107460.0,107450.0,0.41625803]
[1762824156814,0.1202303,107460.0,107450.0,0.41625803]
[1762824157014,0.5298803,107460.0,107450.0,0.41625803]
[1762824157914,0.5024703,107460.0,107450.0,0.41625803]
[1762824158116,0.5298803,107460.0,107450.0,0.41625803]
[1762824159312,0.43679,107460.0,107450.0,0.41625803]
[1762824159517,0.5298803,107460.0,107450.0,0.41625803]
[1762824159918,0.66181081,107460.0,107450.0,0.00219803]
[1762824160927,0.9059903,107460.0,107450.0,0.00219803]
[1762824161125,1.02261081,107460.0,107450.0,0.00219803]
[1762824161523,0.9059903,107460.0,107450.0,0.00219803]
[1762824161826,1.00730081,107460.0,107450.0,0.00219803]
[1762824162015,1.02261081,107460.0,107450.0,0.00219803]
[1762824162216,0.1476577,107440.0,107430.0,0.36093977]
[1762824162422,0.64551821,107440.0,107430.0,0.3631378]
[1762824162736,0.5288977,107440.0,107430.0,0.3631378]
[1762824163432,1.02172821,107440.0,107430.0,0.00013977]
[1762824163735,0.1476751,107420.0,107410.0,0.3608]
[1762824163931,0.5287151,107420.0,107410.0,0.36299803]
[1762824164235,0.5287151,107420.0,107410.0,0.38764803]
[1762824164526,0.5287151,107420.0,107410.0,0.00219803]
[1762824164728,0.65612561,107420.0,107410.0,0.00219803]
[1762824164922,0.5395051,107420.0,107410.0,0.00219803]
[1762824165524,0.65612561,107420.0,107410.0,0.00219803]
[1762824165728,0.56300051,107420.0,107410.0,0.00219803]
[1762824165934,0.65612561,107420.0,107410.0,0.00219803]
[1762824166135,0.5395051,107420.0,107410.0,0.00219803]
[1762824166344,1.01692561,107420.0,107410.0,0.00219803]
[1762824167142,0.1476837,107410.0,107400.0,0.00013977]
[1762824167337,0.1476837,107410.0,107400.0,0.0023378]
[1762824167728,0.1476837,107410.0,107400.0,0.0269878]
[1762824167934,0.26430421,107410.0,107400.0,0.0023378]
[1762824168438,0.05468977,107430.0,107420.0,0.05326]
[1762824168638,0.00013977,107430.0,107420.0,0.79297803]
[1762824169437,0.09325617,107430.0,107420.0,0.79297803]
[1762824169736,0.64350668,107430.0,107420.0,0.00219803]
[1762824169939,0.1481151,107420.0,107410.0,0.05342]
[1762824170140,0.1481151,107420.0,107410.0,0.41641803]
[1762824171138,0.26473561,107420.0,107410.0,0.36299803]
[1762824171339,0.63632561,107420.0,107410.0,0.00219803]
[1762824171642,0.1481237,107410.0,107400.0,0.00013977]
[1762824171842,0.64502421,107410.0,107400.0,0.0023378]
[1762824172348,0.5284037,107410.0,107400.0,0.0023378]
[1762824172540,0.64502421,107410.0,107400.0,0.0023378]
[1762824173547,0.61147622,107410.0,107400.0,0.0023378]
[1762824174446,0.97227622,107410.0,107400.0,0.00013977]
[1762824174844,0.1626624,107400.0,107390.0,7.418e-05]
[1762824175048,0.64008291,107400.0,107390.0,7.418e-05]
[1762824175744,0.1633898,107380.0,107370.0,0.02419039]
[1762824175935,0.1481584,107370.0,107360.0,0.02433016]
[1762824176142,0.26477891,107370.0,107360.0,0.0023378]
[1762824176343,0.5287184,107370.0,107360.0,0.0023378]
[1762824176848,0.52881059,107370.0,107360.0,0.0023378]
[1762824177150,0.6454311,107370.0,107360.0,0.0023378]
[1762824177346,0.6454311,107370.0,107360.0,0.00013977]
[1762824177851,0.1438758,107350.0,107340.0,0.3608]
[1762824178052,0.5243158,107350.0,107340.0,0.36299803]
[1762824178252,0.64093631,107350.0,107340.0,0.36299803]
[1762824178453,0.6410047,107350.0,107340.0,0.36299803]
[1762824178849,0.6410047,107350.0,107340.0,0.00219803]
[1762824179053,0.1546745,107340.0,107330.0,0.00013977]
[1762824179247,0.1439018,107320.0,107310.0,0.36088187]
[1762824179439,0.60736915,107320.0,107310.0,0.3630799]
[1762824179639,0.49074864,107320.0,107310.0,0.3630799]
[1762824179957,9.874e-05,107320.0,107310.0,0.62451091]
[1762824180246,0.00013977,107330.0,107320.0,0.1592118]
[1762824180448,0.05069,107370.0,107360.0,0.02589]
[1762824180657,0.38507,107380.0,107370.0,0.05159]
[1762824180844,0.02427,107380.0,107370.0,0.05378803]
[1762824181049,0.40499,107390.0,107380.0,0.066]
[1762824181251,0.43141,107390.0,107380.0,0.42899803]
[1762824181451,0.5248811,107390.0,107380.0,0.42899803]
[1762824181647,0.50251055,107390.0,107380.0,0.06819803]
[1762824181847,0.61913106,107390.0,107380.0,0.00219803]
[1762824182244,0.1420497,107380.0,107370.0,0.41252977]
[1762824182449,0.25867021,107380.0,107370.0,0.0023378]
[1762824182951,0.58642678,107380.0,107370.0,0.00013977]
[1762824184251,0.04889,107380.0,107370.0,0.0539278]
[1762824184455,0.51336685,107400.0,107390.0,0.05159]
[1762824184757,0.22574925,107400.0,107390.0,0.02808803]
[1762824184952,0.22574925,107400.0,107390.0,0.00219803]
[1762824185155,0.22574925,107400.0,107370.0,0.00013977]
[1762824185156,0.1420498,107380.0,107370.0,0.00013977]
[1762824185357,0.60734688,107380.0,107370.0,0.0023378]
[1762824185550,0.60734688,107380.0,107370.0,0.00013977]
[1762824185952,0.22562688,107380.0,107370.0,0.00013977]
[1762824186160,0.02427,107390.0,107380.0,0.066]
[1762824186356,0.02427,107390.0,107380.0,0.42899803]
[1762824186661,0.10784708,107390.0,107380.0,0.42899803]
[1762824186850,0.13246708,107390.0,107380.0,0.42899803]
[1762824187359,0.02440977,107400.0,107390.0,0.05159]
[1762824187559,0.02440977,107400.0,107390.0,0.41458803]
[1762824187861,0.00013977,107400.0,107390.0,0.41458803]
[1762824188760,0.22574925,107400.0,107390.0,0.38888803]
[1762824189260,0.22574925,107400.0,107390.0,0.00219803]
[1762824189261,0.30932633,107400.0,107390.0,0.00219803]
[1762824189563,0.11967946,107380.0,107370.0,0.00013977]
[1762824189863,0.58461654,107380.0,107370.0,0.0023378]
[1762824190356,0.94541654,107380.0,107370.0,0.00013977]
[1762824190656,0.0973971,107360.0,107350.0,0.00023287]
[1762824190862,0.88937221,107360.0,107350.0,0.00023287]
[1762824191253,0.88937221,107360.0,107350.0,7e-08]
[1762824194458,0.88937221,107360.0,107350.0,0.0021981]
[1762824194659,0.50821221,107360.0,107350.0,0.0021981]
[1762824194861,0.42463513,107360.0,107350.0,0.0021981]
[1762824195160,0.88893221,107360.0,107350.0,0.0021981]
[1762824195560,0.50821221,107360.0,107350.0,0.0021981]
[1762824195756,0.88889221,107360.0,107350.0,0.0021981]
[1762824196062,0.50821221,107360.0,107350.0,0.0021981]
[1762824196263,0.88881221,107360.0,107350.0,0.0021981]
[1762824196461,0.14741221,107360.0,107350.0,0.0021981]
[1762824196657,0.52773221,107360.0,107350.0,0.0021981]
[1762824196864,0.88853221,107360.0,107350.0,0.0021981]
[1762824197453,0.80495513,107360.0,107350.0,0.0021981]
[1762824197659,0.88853221,107360.0,107350.0,0.0021981]
[1762824197855,0.88431221,107360.0,107350.0,7e-08]
[1762824198058,0.50821221,107360.0,107350.0,0.0021981]
[1762824198254,0.88399221,107360.0,107350.0,7e-08]
[1762824198964,0.0931858,107350.0,107340.0,9.318e-05]
[1762824199157,0.54178288,107350.0,107340.0,9.318e-05]
[1762824199353,0.0934919,107320.0,107310.0,0.36088187]
[1762824199564,0.55698898,107320.0,107310.0,0.4129699]
[1762824199859,0.91778898,107320.0,107310.0,0.0022799]
[1762824200063,0.0933605,107310.0,107300.0,0.00023298]
[1762824200263,0.62145466,107310.0,107300.0,0.00023298]
[1762824200561,0.0935179,107290.0,107280.0,0.01441]
[1762824200762,0.00028,107260.0,107250.0,0.36103309]
[1762824200966,0.44465708,107260.0,107250.0,0.00243112]
[1762824201158,0.53792108,107260.0,107250.0,0.00243112]
[1762824201465,0.53799199,107260.0,107250.0,0.00023309]
[1762824201665,0.91931199,107260.0,107250.0,0.00023309]
[1762824202167,0.83573491,107260.0,107250.0,0.00243112]
[1762824202359,0.91931199,107260.0,107250.0,0.02757112]
[1762824202554,0.91931199,107260.0,107250.0,0.00023309]
[1762824202959,0.00028,107240.0,107230.0,0.3608]
[1762824203160,0.46488371,107240.0,107230.0,0.41288803]
[1762824203464,0.55816511,107240.0,107230.0,0.41288803]
[1762824203761,0.55816511,107240.0,107230.0,0.38813803]
[1762824203966,0.55816511,107240.0,107230.0,0.36299803]
[1762824204361,0.55816511,107240.0,107230.0,0.00219803]
[1762824204558,0.91896511,107240.0,107230.0,0.00219803]
[1762824204760,0.0933013,107220.0,107200.0,0.0160832]
[1762824204959,0.08367185,107210.0,107200.0,0.06817123]
[1762824205161,9.477e-05,107210.0,107200.0,0.42897123]
[1762824205467,0.08367185,107210.0,107200.0,0.06817123]
[1762824205664,0.08367185,107210.0,107200.0,0.42897123]
[1762824205860,0.08367185,107210.0,107200.0,0.06817123]
[1762824206459,0.08395185,107210.0,107200.0,0.06817123]
[1762824206665,0.53805925,107210.0,107200.0,0.00243123]
[1762824206978,0.0933161,107200.0,107190.0,0.36087406]
[1762824207266,0.82697388,107200.0,107190.0,0.00080796]
[1762824207464,0.92028998,107200.0,107190.0,0.00080796]
[1762824207864,0.92038475,107200.0,107190.0,7.406e-05]
[1762824208168,0.92038865,107200.0,107170.0,0.3608]
[1762824208368,0.74349157,107200.0,107190.0,0.0506239]
[1762824208565,0.00243134,107200.0,107190.0,0.0506239]
[1762824208772,0.38403134,107200.0,107190.0,0.4114239]
[1762824209067,0.82840842,107200.0,107190.0,0.0506239]
[1762824209266,0.92172452,107200.0,107190.0,0.0007339]
[1762824209772,0.92172822,107200.0,107190.0,0.0007339]
[1762824210366,0.0933509,107160.0,107150.0,0.00023331]
[1762824210562,0.91355075,107160.0,107150.0,0.00023331]
[1762824210875,0.36307659,107160.0,107150.0,0.05012331]
[1762824211168,0.00013977,107170.0,107160.0,0.04989]
[1762824211361,0.00013977,107170.0,107160.0,0.06574]
[1762824211362,0.46927488,107170.0,107160.0,0.06574]
[1762824211762,0.08591488,107170.0,107160.0,1.02654]
[1762824212171,0.08591488,107170.0,107160.0,0.42654]
[1762824212469,0.08598961,107170.0,107160.0,0.42654]
[1762824213076,0.00241253,107170.0,107160.0,0.42654]
[1762824213375,0.08598961,107170.0,107160.0,0.42654]
[1762824213772,0.46926961,107170.0,107160.0,0.42654]
[1762824213967,0.56261181,107170.0,107160.0,0.42654]
[1762824214162,0.0933509,107160.0,107150.0,0.00023331]
[1762824214374,0.26270309,107160.0,107150.0,0.00023331]
[1762824214773,0.62350309,107160.0,107150.0,0.00023331]
[1762824215471,0.0933684,107140.0,107130.0,0.36088061]
[1762824215676,0.46884906,107140.0,107130.0,0.41077061]
[1762824215878,0.46872906,107140.0,107130.0,0.41077061]
[1762824216176,0.56209746,107140.0,107130.0,8.061e-05]
[1762824216379,0.08584906,107140.0,107130.0,0.41077061]
[1762824216676,0.46876906,107140.0,107130.0,0.41077061]
[1762824216872,0.08584906,107140.0,107130.0,0.41077061]
[1762824217974,0.00013977,107150.0,107140.0,0.1591084]
[1762824218275,0.92038618,107190.0,107180.0,0.01585]
[1762824218474,0.82925511,107190.0,107180.0,0.04099]
[1762824218780,0.74567803,107190.0,107180.0,0.06574]
[1762824219180,0.38487803,107190.0,107180.0,0.42654]
[1762824219475,0.64535699,107190.0,107180.0,0.40179]
[1762824219675,1.00615699,107190.0,107180.0,0.04099]
[1762824220181,1.00615699,107190.0,107180.0,0.01585]
[1762824221677,0.0933335,107180.0,107170.0,0.41082977]
[1762824221982,0.17910861,107180.0,107170.0,0.41082977]
[1762824222478,0.18160861,107180.0,107170.0,0.41082977]
[1762824223069,0.54240861,107180.0,107170.0,0.02527977]
[1762824223275,0.54240861,107180.0,107170.0,0.05002977]
[1762824223472,0.08827511,107180.0,107170.0,0.41082977]
[1762824226779,0.46625708,107190.0,107180.0,0.06574]
[1762824226780,0.46445708,107190.0,107180.0,0.06574]
[1762824226970,0.46518975,107190.0,107180.0,0.06793803]
[1762824227473,0.08430975,107190.0,107180.0,0.42873803]
[1762824228383,0.17763455,107190.0,107180.0,0.42873803]
[1762824229580,0.62369163,107190.0,107180.0,0.00219803]
[1762824230275,0.0933335,107180.0,107170.0,0.00013977]
[1762824230481,0.91860325,107180.0,107170.0,0.00013977]
[1762824230676,1.00218033,107180.0,107170.0,0.00013977]
[1762824230876,0.0933509,107160.0,107150.0,0.3608]
[1762824231077,0.0933597,107150.0,107140.0,0.37665]
[1762824231276,0.53846945,107150.0,107140.0,0.00219803]
[1762824231877,0.0933684,107140.0,107130.0,0.024271]
[1762824232077,1.00253523,107140.0,107130.0,8.061e-05]
[1762824232680,0.96890232,107140.0,107130.0,8.061e-05]
[1762824233176,0.96890232,107140.0,107130.0,0.024271]
[1762824233381,0.96890232,107140.0,107130.0,0.02812825]
[1762824233583,0.96890232,107140.0,107130.0,0.03032628]
[1762824233884,0.88556524,107140.0,107130.0,0.07718628]
[1762824234087,0.42126816,107140.0,107130.0,0.05299589]
[1762824234273,0.82546975,107140.0,107130.0,0.05299589]
[1762824234874,0.08430975,107140.0,107130.0,0.41379589]
[1762824235081,0.38105267,107140.0,107130.0,0.41379589]
[1762824235278,0.46442975,107140.0,107130.0,0.41379589]
[1762824235885,0.46442975,107140.0,107130.0,0.03130589]
[1762824236081,0.55779815,107140.0,107130.0,0.03130589]
[1762824236384,0.55779815,107140.0,107130.0,0.05299589]
[1762824236583,0.55779815,107140.0,107130.0,0.00613589]
[1762824236786,0.91859815,107140.0,107130.0,0.00613589]
[1762824237081,0.55779815,107140.0,107130.0,0.00613589]
[1762824237273,0.91859815,107140.0,107130.0,0.00613589]
[1762824237478,0.55791815,107140.0,107130.0,0.02762589]
[1762824237878,0.91871815,107140.0,107130.0,0.02762589]
[1762824238285,0.55791815,107140.0,107130.0,0.02762589]
[1762824238886,0.47434107,107140.0,107130.0,0.04987589]
[1762824239086,0.46454975,107140.0,107130.0,0.04987589]
[1762824239585,0.55791815,107140.0,107130.0,0.04987589]
[1762824239774,0.08430975,107140.0,107130.0,0.04987589]
[1762824239979,0.46398975,107140.0,107130.0,0.04987589]
[1762824240181,0.55735815,107140.0,107130.0,0.04987589]
[1762824240481,1.00173523,107140.0,107130.0,0.00613589]
[1762824240887,0.83458107,107140.0,107130.0,0.00393786]
[1762824241076,0.83458107,107140.0,107130.0,0.00613589]
[1762824241282,0.47378107,107140.0,107130.0,0.00613589]
[1762824241483,1.00173523,107140.0,107130.0,0.00393786]
[1762824241883,0.64093523,107140.0,107130.0,0.00613589]
[1762824242086,1.00173523,107140.0,107130.0,0.00613589]
[1762824242685,1.00173523,107140.0,107130.0,0.00393786]
[1762824242889,0.9518992,107140.0,107130.0,0.00393786]
[1762824243188,0.0933945,107110.0,107100.0,0.02468943]
[1762824243386,0.47344717,107110.0,107100.0,0.01594145]
[1762824243583,0.9515653,107110.0,107100.0,0.03743145]
[1762824243782,0.1180508,107110.0,107100.0,0.05968145]
[1762824243981,0.00073267,107110.0,107100.0,0.51388465]
[1762824244183,0.37937977,107120.0,107110.0,0.04374]
[1762824244389,0.9517133,107120.0,107110.0,0.00219803]
[1762824244684,0.0933945,107110.0,107100.0,0.01374342]
[1762824244886,0.1180508,107110.0,107100.0,0.42048145]
[1762824245093,0.4974508,107110.0,107100.0,0.42048145]
[1762824245385,0.4975708,107110.0,107100.0,0.42048145]
[1762824245586,0.1180508,107110.0,107100.0,0.51388465]
[1762824245779,0.0002367,107120.0,107110.0,0.1371345]
[1762824245985,0.1182875,107120.0,107110.0,0.50013253]
[1762824247584,0.1182875,107120.0,107110.0,0.40673803]
[1762824247792,0.00096937,107120.0,107110.0,0.40673803]
[1762824247989,0.1182875,107120.0,107110.0,0.40673803]
[1762824248793,0.3608,107150.0,107140.0,0.05725]
[1762824248794,0.57148123,107150.0,107140.0,0.05725]
[1762824248989,0.9510939,107150.0,107140.0,0.01570803]
[1762824249191,0.093377,107130.0,107120.0,0.41805]
[1762824249390,0.4969308,107130.0,107120.0,0.42024803]
[1762824250099,0.5903078,107130.0,107120.0,0.42024803]
[1762824251097,0.5903078,107130.0,107120.0,0.05944803]
[1762824251282,0.4969308,107130.0,107120.0,0.05944803]
[1762824251489,0.37961267,107130.0,107120.0,0.51363373]
[1762824251689,0.37961267,107130.0,107120.0,0.42024803]
[1762824252183,0.4969308,107130.0,107120.0,0.42024803]
[1762824252388,0.5903078,107130.0,107120.0,0.05944803]
[1762824252589,0.5903078,107130.0,107120.0,0.42024803]
[1762824252794,0.1180508,107130.0,107120.0,0.42024803]
[1762824253097,0.2114278,107130.0,107120.0,0.42024803]
[1762824253686,0.1180508,107130.0,107120.0,0.42024803]
[1762824253891,0.2114278,107130.0,107120.0,0.42024803]
[1762824254493,0.1180508,107130.0,107120.0,0.42024803]
[1762824254899,0.2114278,107130.0,107120.0,0.42024803]
[1762824255395,0.1180508,107130.0,107120.0,0.44465767]
[1762824255595,0.00073267,107130.0,107120.0,0.53803427]
[1762824255997,0.00013977,107140.0,107130.0,0.137108]
[1762824256293,0.00013977,107140.0,107130.0,0.50010603]
[1762824256502,0.00013977,107140.0,107130.0,0.52451567]
[1762824257100,0.09423164,107140.0,107130.0,0.43114767]
[1762824257394,0.00087244,107140.0,107130.0,0.43114767]
[1762824257993,0.00087244,107140.0,107130.0,0.4311817]
[1762824258299,0.0933199,107190.0,107180.0,0.01351]
[1762824258494,0.5889307,107190.0,107180.0,0.42024803]
[1762824258992,0.07163876,107190.0,107180.0,0.42024803]
[1762824259189,0.4956508,107190.0,107180.0,0.42024803]
[1762824259789,0.2113665,107190.0,107180.0,0.42024803]
[1762824259993,0.1180508,107190.0,107180.0,0.42024803]
[1762824260199,0.5881649,107200.0,107190.0,0.04432]
[1762824260491,0.49559057,107200.0,107190.0,0.40731803]
[1762824260892,0.00013977,107200.0,107190.0,0.40731803]
[1762824261111,0.00013977,107200.0,107190.0,0.50063373]
[1762824261290,0.58785193,107220.0,107190.0,0.48857724]
[1762824261497,0.2113446,107220.0,107210.0,0.40577]
[1762824261802,0.5885046,107220.0,107210.0,0.40796803]
[1762824262505,0.5885046,107220.0,107210.0,0.38513803]
[1762824263707,0.9493046,107220.0,107210.0,0.00219803]
[1762824264090,0.83198647,107220.0,107210.0,0.00219803]
[1762824264298,0.5885046,107220.0,107210.0,0.04716803]
[1762824264498,0.9493046,107220.0,107210.0,0.00219803]
[1762824264900,0.0932983,107210.0,107200.0,0.00013977]
[1762824265101,0.53853748,107210.0,107200.0,0.00013977]
[1762824265700,0.53853748,107210.0,107200.0,0.0023378]
[1762824265902,0.91529748,107210.0,107200.0,0.0023378]
[1762824267002,0.8556108,107210.0,107200.0,0.0023378]
[1762824267199,0.9489091,107210.0,107200.0,0.00013977]
[1762824267398,0.0933157,107190.0,107180.0,0.37431]
[1762824267604,0.5878065,107190.0,107180.0,0.37650803]
[1762824268202,0.5878065,107190.0,107180.0,0.00219803]
[1762824269003,0.0933244,107180.0,107170.0,0.36093977]
[1762824269207,0.5721752,107180.0,107170.0,0.00013977]
[1762824269401,0.5721752,107180.0,107150.0,0.3608]
[1762824269402,0.0933418,107160.0,107150.0,0.3608]
[1762824269600,0.5877526,107160.0,107150.0,0.36299803]
[1762824270506,0.5877526,107160.0,107150.0,0.00219803]
[1762824271198,0.9485526,107160.0,107140.0,0.01364977]
[1762824271406,0.53784256,107150.0,107140.0,0.0023378]
[1762824271611,0.53857523,107150.0,107140.0,0.0023378]
[1762824272306,0.53857523,107150.0,107140.0,0.00013977]
[1762824272905,0.0933592,107140.0,107130.0,8.935e-05]
[1762824273106,0.94861,107140.0,107130.0,8.935e-05]
[1762824273498,0.0933748,107130.0,107120.0,0.05824]
[1762824273704,0.1180508,107130.0,107120.0,0.42123803]
[1762824273906,0.4944508,107130.0,107120.0,0.42123803]
[1762824274210,0.5878187,107130.0,107120.0,0.00219803]
[1762824274403,0.0933853,107110.0,107100.0,0.39644342]
[1762824274605,0.49454015,107110.0,107100.0,0.42147145]
[1762824274808,0.58792545,107110.0,107100.0,0.42147145]
[1762824275006,0.56549949,107110.0,107100.0,0.42147145]
[1762824276318,0.56549949,107110.0,107100.0,0.36323145]
[1762824276611,0.92629949,107110.0,107100.0,0.00023342]
[1762824277605,0.21072093,107090.0,107080.0,0.01327]
[1762824277915,0.55359502,107090.0,107080.0,0.01546803]
[1762824278212,0.55359502,107090.0,107080.0,0.00219803]
[1762824278213,0.58724248,107090.0,107080.0,0.00219803]
[1762824278414,0.0934115,107080.0,107070.0,0.3608]
[1762824278720,0.21072963,107080.0,107070.0,0.36299803]
[1762824279212,0.21072963,107080.0,107070.0,0.00219803]
[1762824279412,0.0934203,107070.0,107060.0,0.37418317]
[1762824279610,0.58721843,107070.0,107060.0,0.3763812]
[1762824280806,0.94809534,107070.0,107060.0,0.00011317]
[1762824281313,0.093429,107060.0,107050.0,0.00023352]
[1762824281516,0.45430151,107070.0,107050.0,0.00023352]
[1762824281816,0.49383813,107060.0,107050.0,0.00243155]
[1762824282021,0.45430151,107070.0,107060.0,0.05824]
[1762824282022,0.36087691,107070.0,107060.0,0.05824]
[1762824282224,0.49391504,107070.0,107060.0,0.42123803]
[1762824282427,0.58733534,107070.0,107060.0,0.06043803]
[1762824282611,0.093429,107060.0,107050.0,0.00023352]
[1762824282811,0.21074713,107060.0,107050.0,0.00023352]
[1762824283010,0.57154713,107060.0,107050.0,0.00023352]
[1762824283216,0.57164483,107060.0,107050.0,0.00023352]
[1762824283521,0.58740483,107060.0,107050.0,0.00243155]
[1762824283815,9.77e-05,107060.0,107050.0,0.40820155]
[1762824284019,9.77e-05,107060.0,107050.0,0.50163925]
[1762824284212,0.00013977,107080.0,107070.0,0.04497]
[1762824284407,0.00013977,107080.0,107070.0,0.40796803]
[1762824284612,0.37669977,107080.0,107070.0,0.40796803]
[1762824284807,0.00013977,107080.0,107070.0,0.40796803]
[1762824285218,0.3767961,107080.0,107070.0,0.40796803]
[1762824285421,0.49411423,107080.0,107070.0,0.40796803]
[1762824286713,0.49415423,107080.0,107070.0,0.76876803]
[1762824286915,0.11755423,107080.0,107070.0,0.76876803]
[1762824287112,0.0002361,107080.0,107070.0,0.86218833]
[1762824287323,0.0002361,107080.0,107070.0,0.76876803]
[1762824287509,0.11755423,107080.0,107070.0,0.76876803]
[1762824288116,0.0002361,107080.0,107070.0,0.76876803]
[1762824288619,0.4541883,107110.0,107090.0,0.04497]
[1762824288821,0.49391813,107110.0,107100.0,0.42123803]
[1762824289122,0.093372,107130.0,107120.0,0.05824]
[1762824289322,0.830772,107130.0,107100.0,0.37626803]
[1762824289526,0.830772,107130.0,107100.0,0.4193778]
[1762824289527,0.0933854,107110.0,107100.0,0.4193778]
[1762824289723,0.3766,107110.0,107100.0,0.4193778]
[1762824289914,0.0933814,107120.0,107110.0,0.04297]
[1762824290114,0.58729953,107120.0,107110.0,0.04516803]
[1762824290812,0.94809953,107120.0,107110.0,0.00219803]
[1762824291009,0.94809953,107120.0,107100.0,0.00013977]
[1762824291010,0.0933854,107110.0,107100.0,0.00013977]
[1762824291222,0.57150353,107110.0,107100.0,0.00013977]
[1762824291824,0.0934029,107090.0,107080.0,0.37407]
[1762824292123,0.58732103,107090.0,107080.0,0.41923803]
[1762824292717,0.58732103,107090.0,107080.0,0.39749803]
[1762824293019,0.58732103,107090.0,107080.0,0.01546803]
[1762824293419,0.58732103,107090.0,107070.0,0.3608]
[1762824293420,0.0934116,107080.0,107070.0,0.3608]
[1762824293610,0.21072973,107080.0,107070.0,0.36299803]
[1762824293815,0.21072973,107080.0,107070.0,0.00219803]
[1762824294130,0.093429,107060.0,107050.0,0.36103352]
[1762824294423,0.58734713,107060.0,107050.0,0.36323155]
[1762824294609,0.21074713,107060.0,107050.0,0.36323155]
[1762824294811,0.58734713,107060.0,107050.0,0.00243155]
[1762824295223,0.58734713,107060.0,107050.0,0.00023352]
[1762824295523,0.58734713,107060.0,107050.0,0.00243155]
[1762824295720,0.94814713,107060.0,107050.0,0.00023352]
[1762824299927,0.0934455,107050.0,107030.0,0.3608]
[1762824300226,0.11731813,107040.0,107030.0,0.3608]
[1762824300414,0.85475813,107040.0,107010.0,0.3608]
[1762824300724,0.8308908,107040.0,107020.0,0.37475]
[1762824300923,0.0934508,107040.0,107030.0,0.04811803]
[1762824301222,0.00013977,107050.0,107040.0,0.05987]
[1762824301425,0.37677977,107050.0,107040.0,0.06206803]
[1762824301827,0.00013977,107050.0,107040.0,0.42286803]
[1762824302027,0.1174579,107050.0,107040.0,0.42286803]
[1762824302222,0.4940979,107050.0,107040.0,0.42286803]
[1762824302625,0.1174579,107050.0,107040.0,0.42286803]
[1762824302928,0.4940979,107050.0,107040.0,0.42286803]
[1762824303522,0.00013977,107050.0,107040.0,0.42286803]
[1762824303717,0.1174579,107050.0,107040.0,0.54069711]
[1762824303923,0.11731813,107060.0,107040.0,0.54069711]
[1762824304124,0.11731813,107060.0,107050.0,0.40672]
[1762824304323,0.49395813,107060.0,107050.0,0.40891803]
[1762824304723,0.58738733,107060.0,107050.0,0.40891803]
[1762824304931,0.55415403,107060.0,107050.0,0.04811803]
[1762824305423,0.37664,107060.0,107050.0,0.04811803]
[1762824305629,0.46072483,107060.0,107050.0,0.40891803]
[1762824306526,0.17751403,107060.0,107050.0,0.40891803]
[1762824306720,0.00013977,107070.0,107060.0,0.05987]
[1762824306922,0.4541998,107100.0,107090.0,0.0226]
[1762824306923,0.58244463,107100.0,107090.0,0.0226]
[1762824307126,1.04316946,107100.0,107090.0,0.00219803]
[1762824307327,0.1375717,107080.0,107070.0,0.40672]
[1762824307531,0.1375717,107080.0,107070.0,0.00219803]
[1762824307532,0.8750117,107080.0,107070.0,0.00219803]
[1762824307736,0.5142117,107080.0,107070.0,0.00219803]
[1762824308029,0.8750117,107080.0,107070.0,0.00219803]
[1762824308225,0.75916388,107080.0,107070.0,0.04811803]
[1762824308533,0.84324871,107080.0,107070.0,0.04811803]
[1762824308832,0.48244871,107080.0,107070.0,0.40891803]
[1762824309230,0.48496871,107080.0,107070.0,0.40891803]
[1762824309533,0.57838041,107080.0,107070.0,0.40891803]
[1762824310932,0.48496871,107080.0,107070.0,0.40891803]
[1762824311330,0.57838041,107080.0,107070.0,0.40891803]
[1762824311526,0.09858377,107090.0,107080.0,0.05987]
[1762824311833,0.0984517,107080.0,107070.0,0.3608]
[1762824312130,0.18253653,107080.0,107070.0,0.36299803]
[1762824312633,0.08912483,107080.0,107070.0,0.36299803]
[1762824312832,0.09355047,107090.0,107070.0,0.40891803]
[1762824313134,0.00013977,107090.0,107080.0,0.42067]
[1762824313333,0.00013977,107090.0,107080.0,0.51627973]
[1762824313631,0.8334055,107110.0,107100.0,0.05987]
[1762824313834,0.8334055,107110.0,107100.0,0.06206803]
[1762824313835,0.8360655,107110.0,107100.0,0.06206803]
[1762824314628,0.92015033,107110.0,107100.0,0.06206803]
[1762824315024,0.46064483,107110.0,107100.0,0.06206803]
[1762824315737,0.55403033,107110.0,107100.0,0.06206803]
[1762824316123,0.55403033,107110.0,107100.0,0.42286803]
[1762824316442,0.53160251,107110.0,107100.0,0.42286803]
[1762824316730,0.08408483,107110.0,107100.0,0.42286803]
[1762824316933,0.4450246,107120.0,107110.0,0.04592]
[1762824317132,0.8215446,107120.0,107110.0,0.04811803]
[1762824317725,0.0842246,107120.0,107110.0,0.40891803]
[1762824317934,0.37665977,107120.0,107110.0,0.50230343]
[1762824319036,0.30665977,107120.0,107110.0,0.50230343]
[1762824319230,0.08408483,107130.0,107120.0,0.0563]
[1762824319429,0.46056483,107130.0,107120.0,0.41929803]
[1762824319627,0.08408483,107140.0,107130.0,0.04348]
[1762824319824,0.46052483,107140.0,107130.0,0.40647803]
[1762824320135,0.08408483,107140.0,107130.0,0.40647803]
[1762824320435,0.46052483,107140.0,107130.0,0.40647803]